bitfinex/quotes_SOLUSD_20240905
["timestamp","ask_amount","ask_price","bid_price","bid_amount"]
[1725577783995,20.0,129.9,129.87,26.9498]
[1725577785279,20.0,129.9,129.88,7.6993]
[1725577787296,7.6969,129.93,129.89,7.6988]
[1725577787496,65.0,129.92,129.89,7.6988]
[1725577796204,7.6979,129.91,129.87,7.6998]
[1725577796506,65.0,129.92,129.86,19.2513]
[1725577796507,65.0,129.9,129.88,7.6993]
[1725577796710,20.0,129.9,129.88,7.6993]
[1725577797305,20.0,129.91,129.88,7.6993]
[1725577797505,45.0,129.9,129.88,7.6993]
[1725577801815,20.0,129.91,129.88,7.6993]
[1725577802709,27.6976,129.91,129.87,7.6997]
[1725577805307,45.0,129.9,129.87,7.6997]
[1725577809414,27.6976,129.91,129.87,7.6997]
[1725577811218,27.6976,129.91,129.88,7.6993]
[1725577813914,20.0,129.91,129.87,16.67738467]
[1725577814111,20.0,129.9,129.89,7.6985]
[1725577815493,20.0,129.9,129.88,26.9462]
[1725577815707,20.0,129.91,129.88,26.9462]
[1725577816122,20.0,129.91,129.85,19.2515]
[1725577816418,20.0,129.91,129.82,38.5132]
[1725577816419,7.7001,129.87,129.82,26.9592]
[1725577816598,27.7007,129.86,129.82,26.9592]
[1725577816923,20.0,129.86,129.83,7.7023]
[1725577823419,45.0,129.85,129.82,26.9591]
[1725577824530,45.0,129.85,129.83,7.7022]
[1725577830803,52.7016,129.85,129.82,19.2565]
[1725577831032,20.0,129.84,129.82,19.2565]
[1725577831211,20.0,129.84,129.8,26.9641]
[1725577831212,45.0,129.83,129.8,26.9641]
[1725577831526,20.0,129.82,129.8,26.9641]
[1725577832929,20.0,129.82,129.81,7.7035]
[1725577833116,20.0,129.84,129.82,7.7029]
[1725577833530,20.0,129.84,129.83,7.7023]
[1725577839424,20.0,129.84,129.82,19.2562]
[1725577839425,20.0,129.84,129.82,26.9587]
[1725577839630,20.0,129.85,129.82,26.9587]
[1725577848333,20.0,129.85,129.83,7.7023]
[1725577848642,20.0,129.86,129.83,7.7023]
[1725577849422,20.0,129.86,129.84,7.7017]
[1725577850512,20.0,129.86,129.82,19.2562]
[1725577850513,20.0,129.86,129.83,7.7021]
[1725577850719,52.7013,129.85,129.82,26.9588]
[1725577850927,20.0,129.84,129.82,26.9588]
[1725577851212,20.0,129.84,129.82,19.2562]
[1725577851412,27.7018,129.84,129.81,7.7033]
[1725577851620,20.0,129.84,129.79,7.7042]
[1725577851941,45.0,129.83,129.74,22.4806]
[1725577852148,7.7049,129.79,129.75,26.9733]
[1725577852436,65.0,129.78,129.75,26.9733]
[1725577853937,20.0,129.78,129.76,7.7064]
[1725577854136,20.0,129.79,129.76,7.7064]
[1725577855454,20.0,129.79,129.77,19.2641]
[1725577855626,20.0,129.81,129.77,19.2641]
[1725577855830,45.0,129.8,129.77,19.2641]
[1725577856139,20.0,129.79,129.77,19.2641]
[1725577856436,20.0,129.79,129.78,7.7053]
[1725577856956,65.0,129.79,129.78,7.7053]
[1725577857321,65.0,129.79,129.75,7.7066]
[1725577857543,45.0,129.78,129.75,7.7066]
[1725577857743,20.0,129.77,129.75,7.7066]
[1725577858237,45.0,129.76,129.75,7.7066]
[1725577858541,65.0,129.76,129.75,7.7066]
[1725577860044,20.0,129.76,129.75,7.7066]
[1725577864538,2.77473791,129.8,129.77,19.2645]
[1725577864739,25.5238,129.85,129.79,7.7047]
[1725577864740,7.703,129.82,129.79,7.7047]
[1725577865034,25.63995873,129.85,129.8,7.7041]
[1725577865350,7.7018,129.84,129.81,26.9616]
[1725577865529,7.7018,129.84,129.81,19.2587]
[1725577866626,45.0,129.83,129.81,19.2587]
[1725577867232,20.0,129.82,129.81,19.2587]
[1725577867644,65.0,129.82,129.81,19.2587]
[1725577870170,20.0,129.82,129.81,26.9622]
[1725577871445,20.0,129.82,129.79,7.7044]
[1725577871748,20.0,129.82,129.78,19.2622]
[1725577871749,20.0,129.82,129.8,7.704]
[1725577871923,20.0,129.83,129.8,7.704]
[1725577872244,45.0,129.82,129.8,7.704]
[1725577872442,20.0,129.81,129.8,7.704]
[1725577872634,20.0,129.81,129.8,26.9644]
[1725577873929,21.8747,129.88,129.8,21.9859]
[1725577874133,21.8747,129.88,129.81,1.54040895]
[1725577874349,7.7,129.87,129.84,19.2544]
[1725577875753,65.0,129.86,129.84,19.2544]
[1725577876155,15.6051,129.92,129.81,14.60925278]
[1725577876340,7.6983,129.9,129.86,7.7004]
[1725577876850,15.6051,129.92,129.85,26.9525]
[1725577876851,7.6989,129.89,129.85,26.9525]
[1725577877044,7.7003,129.87,129.82,19.256]
[1725577877638,65.0,129.86,129.82,19.256]
[1725577878343,65.0,129.86,129.83,7.7022]
[1725577881631,65.0,129.86,129.84,7.7016]
[1725577881839,20.0,129.86,129.84,7.7016]
[1725577882052,22.77872116,129.87,129.84,7.7016]
[1725577882253,20.0,129.87,129.84,7.7016]
[1725577883951,20.0,129.87,129.84,26.9559]
[1725577888962,20.0,129.87,129.85,7.7011]
[1725577890865,20.0,129.87,129.84,26.9558]
[1725577893545,27.7001,129.87,129.84,26.9558]
[1725577893749,45.0,129.86,129.84,19.2543]
[1725577894070,20.0,129.85,129.84,19.2543]
[1725577897358,19.5,129.85,129.84,19.2543]
[1725577900249,64.5,129.85,129.84,19.2543]
[1725577903666,19.5,129.85,129.84,26.956]
[1725577911263,7.6984,129.9,129.86,7.7005]
[1725577911459,45.0,129.89,129.86,7.7005]
[1725577912579,20.0,129.88,129.86,7.7005]
[1725577913380,20.0,129.88,129.87,7.7]
[1725577924800,7.701,129.86,129.82,7.7027]
[1725577924998,65.0,129.85,129.8,41.3848]
[1725577925234,7.7024,129.83,129.8,19.2593]
[1725577925496,45.0,129.82,129.8,19.2593]
[1725577925704,20.0,129.81,129.8,19.2593]
[1725577925896,65.0,129.81,129.78,7.7052]
[1725577926205,27.7036,129.81,129.77,26.9695]
[1725577926513,45.0,129.8,129.77,26.9695]
[1725577926712,20.0,129.79,129.77,26.9695]
[1725577927788,20.0,129.79,129.78,7.7053]
[1725577930193,20.0,129.79,129.77,26.9695]
[1725577930420,20.0,129.8,129.77,26.9695]
[1725577931018,20.0,129.8,129.78,7.7052]
[1725577931216,20.0,129.81,129.78,7.7052]
[1725577932189,20.0,129.81,129.79,7.7047]
[1725577932394,20.0,129.82,129.79,7.7047]
[1725577942907,20.0,129.82,129.8,19.2602]
[1725577943118,35.3051,129.87,129.8,26.9643]
[1725577943119,20.0,129.81,129.8,26.9643]
[1725577953905,20.0,129.81,129.73,22.843]
[1725577954106,65.0,129.8,129.77,7.7056]
[1725577959204,20.0,129.8,129.78,7.7052]
[1725577959527,20.0,129.81,129.78,7.7052]
[1725577962626,20.0,129.81,129.79,7.7047]
[1725577964505,20.0,129.81,129.8,7.7041]
[1725577964732,20.0,129.81,129.79,26.9658]
[1725577964910,27.7029,129.82,129.79,26.9658]
[1725577973935,20.0,129.82,129.8,7.7041]
[1725577974120,20.0,129.83,129.8,7.7041]
[1725577979043,27.7025,129.83,129.8,7.7041]
[1725577980735,27.7025,129.83,129.79,19.2613]
[1725577980736,21.7948,129.91,129.81,1.54071132]
[1725577980941,7.7,129.87,129.83,26.9569]
[1725577981319,7.7007,129.86,129.82,7.7028]
[1725577982319,20.0,129.85,129.82,7.7028]
[1725577987626,27.7012,129.85,129.81,26.9621]
[1725577992325,7.7017,129.84,129.81,26.9621]
[1725577992737,20.0,129.83,129.81,26.9621]
[1725577993553,20.0,129.84,129.81,26.9621]
[1725577996752,20.0,129.84,129.82,7.7029]
[1725577997053,20.0,129.85,129.82,7.7029]
[1725578002152,27.7011,129.85,129.82,7.7029]
[1725578003352,20.0,129.85,129.82,7.7029]
[1725578004257,7.6978,129.91,129.87,7.6999]
[1725578004463,10.52999566,129.91,129.87,7.6999]
[1725578006052,20.0,129.9,129.87,7.6999]
[1725578019544,19.2502,129.96,129.86,22.5718]
[1725578019745,7.6958,129.94,129.88,1.53990794]
[1725578019976,7.6971,129.92,129.88,7.6989]
[1725578020144,7.6971,129.92,129.86,22.5718]
[1725578020552,7.6966,129.93,129.89,7.6987]
[1725578021053,65.0,129.92,129.89,7.6987]
[1725578022849,65.0,129.92,129.9,7.6979]
[1725578023062,20.0,129.92,129.9,7.6979]
[1725578024345,20.0,129.92,129.91,7.6976]
[1725578031760,20.0,129.92,129.9,7.6982]
[1725578031962,20.0,129.92,129.88,7.6991]
[1725578032167,20.0,129.91,129.87,26.9497]
[1725578032465,27.698,129.91,129.87,26.9497]
[1725578037267,30.53450142,129.91,129.87,26.9497]
[1725578038678,27.698,129.91,129.87,26.9497]
[1725578039091,27.698,129.91,129.88,7.6993]
[1725578039776,7.6961,129.94,129.9,26.9437]
[1725578039983,7.6966,129.93,129.89,7.6984]
[1725578040196,7.6971,129.92,129.88,26.9476]
[1725578041109,20.0,129.91,129.88,26.9476]
[1725578041613,27.6976,129.91,129.88,26.9476]
[1725578046310,52.6982,129.9,129.87,7.6997]
[1725578046512,20.0,129.89,129.87,7.6997]
[1725578048508,20.0,129.89,129.88,7.6994]
[1725578049787,20.0,129.89,129.87,7.6995]
[1725578050005,20.0,129.9,129.87,7.6995]
[1725578050511,2.84711969,129.92,129.85,7.7009]
[1725578050512,45.0,129.89,129.85,7.7009]
[1725578050689,20.0,129.88,129.85,7.7009]
[1725578050886,27.6994,129.88,129.84,26.9558]
[1725578052820,27.6994,129.88,129.85,7.7011]
[1725578056708,20.0,129.88,129.85,7.7011]
[1725578057105,20.0,129.88,129.86,7.7004]
[1725578057526,20.0,129.88,129.87,7.7]
[1725578057720,20.0,129.88,129.87,9.23983973]
[1725578057904,20.0,129.88,129.87,7.7]
[1725578063116,20.0,129.88,129.87,9.23986327]
[1725578063902,20.0,129.88,129.87,7.7]
[1725578078006,20.0,129.88,129.87,9.23987243]
[1725578078207,2.83593996,129.93,129.89,7.6987]
[1725578078208,10.53283996,129.93,129.89,7.6987]
[1725578078423,20.0,129.92,129.89,7.6987]
[1725578080144,27.6972,129.92,129.89,7.6987]
[1725578080509,52.6976,129.91,129.88,26.9471]
[1725578080716,20.0,129.9,129.88,26.9471]
[1725578091334,20.0,129.9,129.87,7.6997]
[1725578092537,20.0,129.9,129.88,7.6993]
[1725578096535,20.0,129.91,129.88,7.6993]
[1725578096750,20.0,129.89,129.88,7.6993]
[1725578102339,4.63178995,129.94,129.88,1.53968595]
[1725578102542,4.63178995,129.94,129.93,7.6964]
[1725578102743,7.6944,129.97,129.93,7.6964]
[1725578103039,7.6949,129.96,129.92,26.9394]
[1725578103736,7.6961,129.94,129.9,7.6978]
[1725578103933,65.0,129.93,129.9,7.6978]
[1725578106847,65.0,129.93,129.84,61.057]
[1725578107019,7.6995,129.88,129.82,19.256]
[1725578107221,20.0,129.87,129.83,7.7022]
[1725578108041,20.0,129.87,129.82,19.256]
[1725578108244,7.7012,129.85,129.82,19.256]
[1725578108435,16.0999,129.87,129.79,19.2607]
[1725578108638,7.7023,129.83,129.79,26.965]
[1725578109039,20.0,129.82,129.79,26.965]
[1725578109433,20.0,129.82,129.8,7.7041]
[1725578109625,20.0,129.83,129.8,9.24479791]
[1725578109947,20.0,129.83,129.81,7.7033]
[1725578110142,52.7011,129.86,129.81,7.7033]
[1725578110143,27.7011,129.85,129.81,7.7033]
[1725578110328,45.0,129.84,129.81,7.7033]
[1725578110526,20.0,129.83,129.81,7.7033]
[1725578111436,20.0,129.84,129.81,7.7033]
[1725578111640,20.0,129.85,129.81,7.7033]
[1725578111843,20.0,129.85,129.79,19.2607]
[1725578112048,20.0,129.85,129.82,7.7029]
[1725578116049,20.0,129.85,129.83,7.7019]
[1725578116227,20.0,129.86,129.83,7.7019]
[1725578124136,27.7007,129.86,129.82,26.9586]
[1725578125035,20.0,129.86,129.81,7.7033]
[1725578125337,60.6465,129.85,129.79,19.2604]
[1725578125541,19.2594,129.81,129.74,23.5087]
[1725578125850,19.2594,129.81,129.7,13.0688462]
[1725578125851,45.0,129.8,129.72,19.2708]
[1725578126167,35.6465,129.79,129.72,19.2708]
[1725578126332,7.7066,129.76,129.72,26.9793]
[1725578126531,20.0,129.75,129.72,26.9793]
[1725578126839,20.0,129.75,129.73,7.7082]
[1725578127232,20.0,129.76,129.73,7.7082]
[1725578127944,20.0,129.76,129.74,7.7075]
[1725578128278,27.7059,129.77,129.73,7.7081]
[1725578128550,45.0,129.76,129.73,7.7081]
[1725578128769,20.0,129.75,129.73,7.7081]
[1725578134862,20.0,129.75,129.74,7.7077]
[1725578135374,20.0,129.75,129.72,26.9794]
[1725578135565,20.0,129.76,129.72,26.9794]
[1725578135763,45.0,129.75,129.7,41.2506]
[1725578135965,7.7079,129.74,129.7,48.9605]
[1725578136266,7.7101,129.7,129.67,48.9655]
[1725578136471,7.7101,129.7,129.67,19.2785]
[1725578136766,20.0,129.69,129.66,7.7124]
[1725578137875,27.7107,129.69,129.66,7.7124]
[1725578138560,7.7116,129.68,129.64,41.2592]
[1725578138767,20.0,129.67,129.64,48.9725]
[1725578139063,20.0,129.67,129.65,7.7129]
[1725578139243,20.0,129.67,129.64,41.2592]
[1725578139449,20.0,129.71,129.64,41.2592]
[1725578139761,45.0,129.7,129.64,41.2592]
[1725578139971,20.0,129.69,129.66,7.7124]
[1725578140339,20.0,129.69,129.65,7.7128]
[1725578140340,27.7107,129.69,129.65,7.7128]
[1725578141578,20.0,129.69,129.66,7.712]
[1725578143947,7.7096,129.71,129.64,21.9754]
[1725578144165,7.7096,129.71,129.65,1.54220841]
[1725578145260,7.7096,129.71,129.68,7.7112]
[1725578145656,20.0,129.7,129.68,7.7112]
[1725578147863,20.0,129.71,129.68,7.7112]
[1725578148069,20.0,129.71,129.69,7.7106]
[1725578148272,20.0,129.71,129.68,7.7111]
[1725578148653,27.7096,129.71,129.68,7.7111]
[1725578149278,20.0,129.71,129.68,7.7111]
[1725578150674,20.0,129.71,129.69,26.9869]
[1725578150875,27.7092,129.72,129.69,19.2765]
[1725578151475,7.7096,129.71,129.67,7.7116]
[1725578151681,20.0,129.7,129.67,7.7116]
[1725578153192,20.0,129.7,129.68,7.7112]
[1725578153565,20.0,129.71,129.68,7.7112]
[1725578154283,20.0,129.71,129.67,7.7116]
[1725578154578,7.7097,129.71,129.67,7.7116]
[1725578154785,20.0,129.7,129.67,7.7116]
[1725578157894,20.0,129.7,129.68,7.7111]
[1725578159187,20.0,129.7,129.67,7.7117]
[1725578160970,20.0,129.7,129.68,7.7112]
[1725578162478,20.0,129.71,129.69,7.7106]
[1725578165000,20.0,129.72,129.69,7.7106]
[1725578170005,20.0,129.72,129.7,7.7097]
[1725578170312,15.6024,129.76,129.7,1.54182782]
[1725578170673,7.7075,129.75,129.71,26.9816]
[1725578171807,20.0,129.74,129.71,26.9816]
[1725578173795,20.0,129.74,129.71,19.2724]
[1725578173980,2.74492976,129.76,129.73,7.7083]
[1725578174179,7.7062,129.77,129.73,7.7083]
[1725578175176,7.7062,129.77,129.73,9.24979404]
[1725578175412,20.0,129.76,129.73,9.24979404]
[1725578175596,10.49422693,129.79,129.75,7.7067]
[1725578176402,7.7054,129.78,129.74,7.7075]
[1725578176784,20.0,129.77,129.74,7.7075]
[1725578186317,20.0,129.77,129.75,7.707]
[1725578187627,20.0,129.77,129.76,7.7065]
[1725578189406,20.0,129.77,129.76,26.9728]
[1725578194601,20.0,129.77,129.75,7.7069]
[1725578202198,20.0,129.77,129.72,22.6389]
[1725578202398,2.81598335,129.8,129.71,26.9819]
[1725578202399,7.7073,129.75,129.71,26.9819]
[1725578202601,20.0,129.74,129.71,26.9819]
[1725578204123,20.0,129.74,129.72,1.54182608]
[1725578204300,20.0,129.75,129.72,19.2709]
[1725578204497,20.0,129.76,129.75,7.7071]
[1725578204921,20.0,129.76,129.75,26.9749]
[1725578209108,20.0,129.76,129.74,7.7075]
[1725578209309,7.7062,129.77,129.73,7.708]
[1725578209509,20.0,129.76,129.73,7.708]
[1725578209815,27.7066,129.76,129.73,7.708]
[1725578210210,27.7066,129.76,129.72,19.2707]
[1725578210430,20.0,129.76,129.73,7.7081]
[1725578214126,20.0,129.76,129.74,7.7076]
[1725578214312,20.0,129.77,129.74,7.7076]
[1725578214831,20.0,129.77,129.76,7.7065]
[1725578215625,20.0,129.77,129.75,26.9739]
[1725578215831,20.0,129.78,129.75,26.9739]
[1725578216124,20.0,129.78,129.76,7.7065]
[1725578219430,20.0,129.78,129.73,19.2707]
[1725578219734,45.0,129.77,129.73,19.2707]
[1725578219933,20.0,129.76,129.74,7.7074]
[1725578220608,20.0,129.76,129.73,26.9788]
[1725578220904,20.0,129.76,129.74,7.7075]
[1725578222113,20.0,129.76,129.73,26.9787]
[1725578222317,20.0,129.76,129.71,19.2737]
[1725578222517,7.7079,129.74,129.71,19.2737]
[1725578222827,7.7093,129.72,129.68,26.9879]
[1725578223007,20.0,129.71,129.68,26.9879]
[1725578223920,20.0,129.71,129.69,7.7106]
[1725578226429,20.0,129.71,129.68,26.9878]
[1725578233314,20.0,129.71,129.68,28.5298273]
[1725578233632,20.0,129.71,129.68,26.9878]
[1725578238546,20.0,129.71,129.69,9.25255306]
[1725578238836,20.0,129.72,129.69,9.25255306]
[1725578239215,20.0,129.72,129.69,7.7105]
[1725578242140,20.0,129.72,129.66,35.8476462]
[1725578242332,27.7071,129.75,129.71,19.2737]
[1725578242531,27.7071,129.75,129.72,1.54162176]
[1725578243132,20.0,129.75,129.72,7.7087]
[1725578243640,7.708,129.74,129.71,19.2737]
[1725578243844,20.0,129.73,129.71,19.2737]
[1725578244345,20.0,129.73,129.68,19.2773]
[1725578244647,7.7099,129.71,129.68,19.2773]
[1725578244827,20.0,129.74,129.66,30.4911]
[1725578244828,7.7104,129.7,129.66,30.4911]
[1725578245144,27.7107,129.69,129.65,26.9955]
[1725578247340,20.0,129.69,129.67,19.2792]
[1725578247541,2.81546251,129.71,129.67,19.2792]
[1725578247724,7.7099,129.71,129.67,26.9909]
[1725578248044,20.0,129.7,129.67,26.9909]
[1725578248438,20.0,129.7,129.63,22.0846]
[1725578248439,20.0,129.7,129.65,7.713]
[1725578248746,7.7108,129.69,129.65,7.713]
[1725578248946,20.0,129.68,129.65,7.713]
[1725578249126,20.0,129.68,129.66,7.7124]
[1725578250047,20.0,129.68,129.66,26.9934]
[1725578250246,20.0,129.69,129.67,7.7118]
[1725578250425,20.0,129.7,129.67,7.7118]
[1725578252053,20.0,129.7,129.67,9.25392137]
[1725578252538,20.0,129.7,129.68,26.9888]
[1725578252848,20.0,129.71,129.68,26.9888]
[1725578253548,27.7096,129.71,129.67,7.7114]
[1725578253850,27.7096,129.71,129.66,7.712]
[1725578253851,7.7103,129.7,129.66,7.712]
[1725578254047,27.711,129.69,129.65,26.9938]
[1725578259263,7.7114,129.68,129.65,26.9938]
[1725578259443,20.0,129.67,129.65,26.9938]
[1725578260860,20.0,129.67,129.63,19.2856]
[1725578261036,20.0,129.67,129.61,38.5754]
[1725578261037,20.0,129.69,129.62,7.7145]
[1725578261250,45.0,129.68,129.62,7.7145]
[1725578261442,20.0,129.67,129.62,7.7145]
[1725578262256,7.7131,129.65,129.62,7.7145]
[1725578262446,20.0,129.64,129.62,7.7145]
[1725578264051,20.0,129.65,129.62,7.7145]
[1725578264238,20.0,129.65,129.6,21.4096]
[1725578264578,20.0,129.67,129.61,7.7153]
[1725578264942,7.7134,129.65,129.61,7.7153]
[1725578265142,27.7137,129.64,129.61,7.7153]
[1725578266148,27.7137,129.64,129.6,48.4153]
[1725578266354,27.7137,129.64,129.6,27.0057]
[1725578266637,7.7143,129.63,129.6,19.2899]
[1725578266842,7.7154,129.61,129.57,42.9937118]
[1725578267039,7.7154,129.61,129.57,27.8534118]
[1725578267040,20.0,129.6,129.57,27.8534118]
[1725578272556,20.0,129.6,129.58,7.7172]
[1725578273156,20.0,129.61,129.58,7.7172]
[1725578273961,27.7154,129.61,129.58,7.7172]
[1725578280481,20.0,129.61,129.58,7.7172]
[1725578280676,20.0,129.61,129.58,19.2917]
[1725578280867,7.7146,129.63,129.59,7.7163]
[1725578281067,20.0,129.62,129.59,7.7163]
[1725578281985,20.0,129.62,129.6,7.7159]
[1725578283183,27.7151,129.62,129.58,27.0084]
[1725578284177,27.7151,129.62,129.59,7.7165]
[1725578288488,2.79065501,129.64,129.61,19.2871]
[1725578288788,25.3656,129.68,129.58,15.4012]
[1725578288973,28.21793396,129.68,129.58,15.4012]
[1725578289175,7.7136,129.64,129.6,7.7155]
[1725578289566,7.7136,129.64,129.61,7.7154]
[1725578289882,7.7144,129.63,129.59,27.0077]
[1725578290066,20.0,129.62,129.59,27.0077]
[1725578290267,27.7148,129.62,129.59,19.2914]
[1725578290969,27.7148,129.62,129.58,7.717]
[1725578291284,20.0,129.62,129.57,20.1369118]
[1725578291483,25.7802,129.64,129.57,27.8545118]
[1725578291484,52.716,129.61,129.57,27.8545118]
[1725578291679,20.0,129.6,129.57,27.8545118]
[1725578291865,45.0,129.59,129.57,27.8545118]
[1725578292065,20.0,129.58,129.57,27.8545118]
[1725578295771,7.7143,129.63,129.59,7.7164]
[1725578296188,20.0,129.62,129.59,7.7164]
[1725578296489,64.338,129.67,129.57,0.8425118]
[1725578296490,17.9811253,129.65,129.6,19.29]
[1725578296693,7.7137,129.64,129.6,19.29]
[1725578296900,7.7137,129.64,129.6,27.0057]
[1725578297712,20.0,129.63,129.6,27.0057]
[1725578298701,20.0,129.63,129.61,7.7149]
[1725578298997,20.0,129.64,129.61,7.7149]
[1725578301169,27.7136,129.64,129.6,27.0059]
[1725578306399,27.7136,129.64,129.61,7.7153]
[1725578307399,20.0,129.64,129.61,7.7151]
[1725578308085,27.7137,129.64,129.61,7.7151]
[1725578308488,20.0,129.64,129.62,7.7146]
[1725578315200,20.0,129.64,129.63,7.7142]
[1725578315783,20.0,129.64,129.62,27.0005]
[1725578316008,2.71578548,129.66,129.62,27.0005]
[1725578316186,20.0,129.63,129.62,27.0005]
[1725578320906,20.0,129.63,129.61,7.7151]
[1725578321204,20.0,129.63,129.6,7.7157]
[1725578322412,20.0,129.63,129.61,7.7154]
[1725578322704,20.0,129.64,129.61,7.7154]
[1725578324904,20.0,129.64,129.62,27.0018]
[1725578325092,20.0,129.65,129.62,27.0018]
[1725578327004,27.7131,129.65,129.62,27.0018]
[1725578331315,52.7138,129.64,129.61,7.7151]
[1725578331487,20.0,129.63,129.61,7.7151]
[1725578331884,20.0,129.63,129.6,27.0058]
[1725578333219,20.0,129.63,129.61,7.7153]
[1725578344822,45.0,129.62,129.57,65.0080118]
[1725578345009,20.0,129.61,129.59,7.7163]
[1725578345204,20.0,129.61,129.6,7.716]
[1725578345404,20.0,129.61,129.59,27.0076]
[1725578345598,20.0,129.62,129.59,27.0076]
[1725578348032,20.0,129.62,129.61,7.7154]
[1725578348415,20.0,129.62,129.61,9.25830625]
[1725578348615,7.712,129.67,129.63,7.7139]
[1725578349015,7.712,129.67,129.63,9.2566126]
[1725578349218,10.4900332,129.67,129.63,7.7139]
[1725578350126,20.0,129.66,129.63,7.7139]
[1725578350434,20.0,129.66,129.62,19.2868]
[1725578350615,7.7137,129.64,129.6,24.1885]
[1725578350822,20.0,129.63,129.61,7.7153]
[1725578351143,20.0,129.63,129.6,24.1888]
[1725578351525,27.7143,129.63,129.6,7.7158]
[1725578352138,7.7149,129.62,129.59,27.0067]
[1725578352324,20.0,129.61,129.57,17.3155118]
[1725578352528,7.7155,129.61,129.57,17.3155118]
[1725578352726,20.0,129.6,129.57,25.0330118]
[1725578353039,20.0,129.6,129.58,7.7172]
[1725578355245,20.0,129.6,129.57,25.0331118]
[1725578357333,27.7161,129.6,129.57,0.8425118]
[1725578357528,27.7161,129.6,129.57,8.5601118]
[1725578359439,52.7166,129.59,129.57,0.8425118]
[1725578359746,20.0,129.58,129.57,0.8425118]
[1725578361533,27.7172,129.58,129.57,0.8425118]
[1725578362122,72.7172,129.58,129.57,0.8425118]
[1725578362318,20.0,129.58,129.57,0.8425118]
[1725578376369,72.7172,129.58,129.57,0.8425118]
[1725578378159,7.7182,129.57,129.53,27.0203]
[1725578378333,20.0,129.56,129.53,27.0203]
[1725578378655,27.7184,129.56,129.53,27.0203]
[1725578380944,27.7184,129.56,129.52,13.9773]
[1725578381155,7.7191,129.55,129.51,42.0769]
[1725578381467,20.0,129.54,129.51,27.0246]
[1725578382168,27.7197,129.54,129.51,19.3033]
[1725578382663,19.3033,129.52,129.45,21.2051]
[1725578382834,20.0,129.54,129.45,21.2051]
[1725578383034,7.7218,129.51,129.46,27.0346]
[1725578383237,72.722,129.5,129.46,19.3105]
[1725578383454,7.7227,129.49,129.45,28.9299]
[1725578383660,20.0,129.48,129.45,28.9299]
[1725578383962,20.0,129.48,129.46,7.7242]
[1725578384138,20.0,129.49,129.46,9.26893655]
[1725578384461,7.7215,129.51,129.45,40.5171]
[1725578384462,20.0,129.5,129.47,7.7237]
[1725578384663,20.0,129.5,129.48,7.7231]
[1725578384874,20.0,129.51,129.48,7.7231]
[1725578386264,27.7214,129.51,129.47,27.0329]
[1725578386463,52.722,129.5,129.47,19.3092]
[1725578386643,20.0,129.49,129.47,19.3092]
[1725578387038,20.0,129.49,129.47,20.85385667]
[1725578387457,20.0,129.51,129.47,27.0328]
[1725578388463,20.0,129.51,129.48,7.723]